bitfinex/quotes_SOLUSD_20240726
["timestamp","ask_amount","ask_price","bid_price","bid_amount"]
[1722007302328,22.0194,182.36,182.29,20.0]
[1722007302941,22.0194,182.36,182.3,45.0]
[1722007303128,22.0194,182.36,182.31,20.0]
[1722007303335,22.0194,182.36,182.32,45.0]
[1722007303533,22.0194,182.36,182.33,20.0]
[1722007303736,22.0194,182.36,182.31,20.0]
[1722007304121,22.0194,182.36,182.3,20.0]
[1722007305124,22.0194,182.36,182.31,45.0]
[1722007305345,22.0194,182.36,182.32,20.0]
[1722007305734,22.0194,182.36,182.3,20.0]
[1722007309950,22.0194,182.36,182.31,45.0]
[1722007310250,22.0194,182.36,182.32,20.0]
[1722007310452,22.0194,182.36,182.33,45.0]
[1722007312348,21.9961,182.43,182.34,20.0]
[1722007312567,21.9961,182.43,182.35,45.0]
[1722007313456,21.9961,182.43,182.36,20.0]
[1722007313657,21.9961,182.43,182.37,45.0]
[1722007314252,21.9961,182.43,182.38,20.0]
[1722007314455,21.9961,182.43,182.39,45.0]
[1722007315452,21.9961,182.43,182.38,20.0]
[1722007315752,21.9961,182.43,182.36,20.0]
[1722007315969,1.37071311,182.42,182.32,26.04]
[1722007316144,21.9961,182.43,182.32,26.04]
[1722007316444,21.9961,182.43,182.29,28.11919801]
[1722007316640,21.9961,182.43,182.29,26.04]
[1722007317559,21.9961,182.43,182.32,26.04]
[1722007318162,21.9961,182.43,182.38,13.01]
[1722007318344,21.9961,182.43,182.4,13.01]
[1722007318664,21.9961,182.43,182.42,13.01]
[1722007319668,15.9505,182.48,182.42,78.01]
[1722007319844,15.9505,182.48,182.35,32.7435]
[1722007319845,15.9505,182.48,182.45,13.01]
[1722007320174,15.9505,182.48,182.39,26.0]
[1722007320477,15.9505,182.48,182.4,65.34]
[1722007321467,15.9505,182.48,182.4,65.17]
[1722007321672,15.9505,182.48,182.4,65.0]
[1722007321878,15.9505,182.48,182.4,20.0]
[1722007322069,15.9505,182.48,182.37,20.0]
[1722007322268,15.9505,182.48,182.39,26.0]
[1722007322471,15.9505,182.48,182.4,20.0]
[1722007322676,15.9505,182.48,182.42,26.0]
[1722007322978,15.9505,182.48,182.43,20.0]
[1722007323349,15.9505,182.48,182.44,45.0]
[1722007323885,15.9505,182.48,182.45,20.0]
[1722007324193,6.0992,182.49,182.46,45.0]
[1722007324344,6.0992,182.49,182.47,20.0]
[1722007324677,6.0992,182.49,182.45,20.0]
[1722007325183,6.0992,182.49,182.4,20.0]
[1722007325349,6.0992,182.49,182.36,26.0]
[1722007325547,15.1433,182.48,182.36,26.0]
[1722007325887,15.1433,182.48,182.33,28.06836317]
[1722007326188,15.1433,182.48,182.33,26.0]
[1722007326189,6.4146,182.46,182.33,26.0]
[1722007326546,6.4146,182.46,182.33,42.5]
[1722007326884,6.4146,182.46,182.36,26.0]
[1722007327385,6.4146,182.46,182.37,20.0]
[1722007328370,6.4146,182.46,182.38,45.34]
[1722007328582,6.4146,182.46,182.39,20.0]
[1722007328784,6.4146,182.46,182.4,45.0]
[1722007328951,6.4146,182.46,182.41,20.0]
[1722007329852,6.4146,182.46,182.37,20.0]
[1722007330183,6.4146,182.46,182.38,45.17]
[1722007330351,6.4146,182.46,182.39,20.0]
[1722007331271,7.78509531,182.46,182.39,20.0]
[1722007331501,6.4146,182.46,182.33,26.0]
[1722007331793,1.37057848,182.45,182.33,26.0]
[1722007331999,6.4146,182.46,182.33,26.0]
[1722007333203,6.4146,182.46,182.34,36.5]
[1722007333676,6.4146,182.46,182.36,26.0]
[1722007333870,6.4146,182.46,182.37,65.34]
[1722007335109,6.4146,182.46,182.37,65.0]
[1722007336204,7.78511151,182.46,182.3,26.0]
[1722007336503,18.01000702,182.45,182.3,26.0]
[1722007336712,6.1946,182.44,182.3,26.0]
[1722007337488,6.4852,182.41,182.26,31.73513033]
[1722007337694,1.37107404,182.4,182.26,31.73513033]
[1722007337875,1.37107197,182.39,182.26,26.0]
[1722007338277,21.9349,182.41,182.26,26.0]
[1722007338894,1.37100408,182.4,182.26,26.0]
[1722007339101,1.37100408,182.4,182.25,5.73844408]
[1722007339102,6.2568,182.37,182.25,5.73844408]
[1722007339280,7.62804065,182.37,182.23,26.0]
[1722007339475,6.2568,182.37,182.23,26.0]
[1722007339802,6.2568,182.37,182.23,42.5]
[1722007340185,6.2568,182.37,182.23,26.0]
[1722007340789,6.2568,182.37,182.24,45.0]
[1722007341195,6.2568,182.37,182.25,20.0]
[1722007341404,6.2568,182.37,182.26,26.0]
[1722007341706,6.2568,182.37,182.27,20.0]
[1722007342074,6.2568,182.37,182.29,26.0]
[1722007342274,6.2568,182.37,182.3,65.17]
[1722007342906,6.2568,182.37,182.31,0.17]
[1722007343079,6.2568,182.37,182.3,65.0]
[1722007343282,6.2568,182.37,182.3,20.0]
[1722007343499,6.2568,182.37,182.27,20.0]
[1722007343800,6.2568,182.37,182.28,45.34]
[1722007343991,6.2568,182.37,182.29,20.0]
[1722007344674,6.2568,182.37,182.27,20.0]
[1722007344875,1.37112824,182.36,182.22,2.05466329]
[1722007345078,6.6548,182.34,182.18,26.0]
[1722007345383,6.6548,182.32,182.18,26.0]
[1722007346789,8.02645463,182.32,182.19,45.0]
[1722007347112,8.02645463,182.32,182.18,26.0]
[1722007347611,6.6548,182.32,182.18,26.0]
[1722007348289,16.2889,182.31,182.18,26.0]
[1722007349593,16.2889,182.31,182.19,65.0]
[1722007349899,16.2889,182.31,182.2,0.34]
[1722007350106,16.2889,182.31,182.21,26.0]
[1722007350307,16.2889,182.31,182.22,65.17]
[1722007350500,16.2889,182.31,182.23,0.17]
[1722007350686,16.2889,182.31,182.24,26.0]
[1722007351003,16.2889,182.31,182.25,65.0]
[1722007352786,16.2889,182.31,182.27,26.0]
[1722007352988,16.2889,182.31,182.28,65.34]
[1722007353197,16.2889,182.31,182.28,65.0]
[1722007354320,6.6548,182.32,182.28,65.0]
[1722007354612,16.3797,182.35,182.3,26.0]
[1722007354907,22.6073,182.4,182.33,26.0]
[1722007355113,22.6073,182.4,182.34,65.34]
[1722007356396,22.6073,182.4,182.34,65.0]
[1722007357132,22.6073,182.4,182.34,20.0]
[1722007357291,22.6073,182.4,182.31,20.0]
[1722007357493,22.6073,182.4,182.32,45.0]
[1722007357808,22.6073,182.4,182.33,20.0]
[1722007359401,1.37090761,182.39,182.27,26.0]
[1722007359611,1.37090761,182.39,182.28,0.34]
[1722007359824,1.37090761,182.39,182.28,45.34]
[1722007360118,1.37090761,182.39,182.28,45.0]
[1722007360412,23.97835822,182.4,182.27,28.10072095]
[1722007360614,1.37115253,182.39,182.27,2.10072095]
[1722007360792,1.37115253,182.39,182.24,26.0]
[1722007361003,23.97844841,182.4,182.24,26.0]
[1722007361195,22.6073,182.4,182.24,26.0]
[1722007361689,22.6073,182.4,182.27,26.0]
[1722007361890,22.6073,182.4,182.28,65.17]
[1722007363222,1.37108109,182.39,182.28,65.0]
[1722007363430,22.6073,182.4,182.28,65.0]
[1722007365006,22.6073,182.4,182.29,0.34]
[1722007366596,22.6073,182.4,182.3,26.0]
[1722007366806,22.6073,182.4,182.31,65.17]
[1722007367897,22.6073,182.4,182.32,0.17]
[1722007370010,22.6073,182.4,182.33,26.0]
[1722007370215,22.6073,182.4,182.36,26.0]
[1722007370512,22.6073,182.4,182.37,65.17]
[1722007371628,22.6073,182.4,182.37,65.0]
[1722007372418,22.6073,182.4,182.37,20.0]
[1722007372619,22.6073,182.4,182.3,26.0]
[1722007374202,22.6073,182.4,182.31,0.34]
[1722007374727,22.6073,182.4,182.31,20.0]
[1722007374928,22.6073,182.4,182.32,45.0]
[1722007375122,22.6073,182.4,182.33,20.0]
[1722007375434,22.6073,182.4,182.25,26.0]
[1722007376019,22.6073,182.4,182.25,44.59760052]
[1722007376312,22.6073,182.4,182.25,28.09760052]
[1722007376506,22.6073,182.4,182.26,45.34]
[1722007376932,22.6073,182.4,182.27,20.0]
[1722007377151,22.6073,182.4,182.28,71.34]
[1722007377338,22.6073,182.4,182.29,20.0]
[1722007377641,22.6073,182.4,182.3,45.34]
[1722007377817,22.6073,182.4,182.31,20.0]
[1722007378023,22.6073,182.4,182.32,45.0]
[1722007378217,22.6073,182.4,182.33,20.0]
[1722007379663,22.6073,182.4,182.29,20.0]
[1722007379934,22.6073,182.4,182.3,0.17]
[1722007380319,22.6073,182.4,182.29,20.0]
[1722007380525,17.12674147,182.39,182.25,28.09760052]
[1722007380736,15.7557,182.37,182.25,26.0]
[1722007381320,6.6591,182.36,182.24,5.73586136]
[1722007381529,16.87520354,182.35,182.22,28.06835031]
[1722007381920,16.87520354,182.35,182.22,26.0]
[1722007382122,6.0873,182.34,182.22,26.0]
[1722007382318,6.0873,182.34,182.2,5.73990802]
[1722007382523,15.9686,182.33,182.2,5.73990802]
[1722007383321,15.9686,182.31,182.2,7.87269749]
[1722007383529,15.9686,182.31,182.2,2.13278947]
[1722007383724,15.9686,182.31,182.2,20.0]
[1722007383951,15.9686,182.31,182.22,26.0]
[1722007384151,15.9686,182.31,182.23,20.0]
[1722007384447,15.9686,182.31,182.24,0.34]
[1722007384827,15.9686,182.31,182.24,45.34]
[1722007385019,15.9686,182.31,182.25,20.0]
[1722007385222,15.9686,182.31,182.26,45.0]
[1722007385447,15.9686,182.31,182.27,20.0]
[1722007385927,15.9686,182.31,182.23,20.0]
[1722007387852,15.9686,182.31,182.24,45.0]
[1722007388343,15.9686,182.31,182.25,20.0]
[1722007388940,15.9686,182.31,182.23,20.0]
[1722007389323,17.34021565,182.31,182.2,20.0]
[1722007389641,17.34021565,182.31,182.21,45.0]
[1722007389853,15.9686,182.31,182.22,20.0]
[1722007390031,15.9686,182.31,182.23,45.0]
[1722007390350,15.9686,182.31,182.24,20.0]
[1722007391053,15.9686,182.31,182.25,45.0]
[1722007391255,15.9686,182.31,182.26,20.0]
[1722007392451,15.9686,182.31,182.27,45.0]
[1722007392640,15.9686,182.31,182.28,20.0]
[1722007393453,15.9686,182.31,182.29,45.0]
[1722007393952,16.5,182.54,182.3,20.0]
[1722007394124,26.0,182.42,182.3,25.4854]
[1722007395060,46.37121768,182.41,182.3,25.4854]
[1722007395430,46.37121768,182.41,182.31,5.485]
[1722007395858,46.37121768,182.41,182.32,5.4847]
[1722007396337,27.37121444,182.42,182.33,5.4845]
[1722007396549,27.37121444,182.42,182.31,13.7122]
[1722007396856,45.0,182.41,182.31,19.1973]
[1722007397035,22.75551621,182.4,182.31,19.1973]
[1722007397238,22.75551621,182.4,182.31,13.7122]
[1722007397444,21.3843,182.4,182.31,13.7122]
[1722007397836,21.3843,182.4,182.32,5.4846]
[1722007398040,21.3843,182.4,182.35,5.4839]
[1722007398240,21.3843,182.4,182.39,5.4827]
[1722007398561,15.0616,182.4,182.39,5.4827]
[1722007398750,15.0616,182.4,182.37,19.1913]
[1722007398950,15.0616,182.4,182.38,20.0]
[1722007399934,15.0616,182.4,182.39,5.4827]
[1722007400839,22.5076,182.44,182.39,5.4827]
[1722007401665,22.5076,182.44,182.39,5.4826]
[1722007402227,22.5076,182.44,182.38,20.0]
[1722007403657,22.5076,182.44,182.4,13.706]
[1722007404566,22.5076,182.44,182.41,5.4821]
[1722007404977,16.1634,182.44,182.43,19.1853]
[1722007405272,22.1249,182.49,182.43,19.1853]
[1722007405435,22.1249,182.49,182.44,5.481]
[1722007405846,22.1249,182.49,182.45,5.4808]
[1722007406256,22.1249,182.49,182.47,5.4802]
[1722007406773,22.1249,182.49,182.46,13.7015]
[1722007406969,22.1249,182.49,182.45,5.4807]
[1722007407196,22.1249,182.49,182.45,13.7023]
[1722007407471,15.2176,182.53,182.45,13.7023]
[1722007407856,15.2176,182.53,182.45,19.1832]
[1722007408079,1.37005567,182.52,182.45,19.1832]
[1722007408271,15.2176,182.53,182.45,19.1832]
[1722007408573,15.2176,182.53,182.45,13.7023]
[1722007408947,15.2176,182.53,182.45,19.1832]
[1722007409350,15.2176,182.53,182.4,27.09604231]
[1722007409351,15.2176,182.53,182.41,13.7047]
[1722007409582,15.2176,182.53,182.42,21.09611545]
[1722007409749,15.2176,182.53,182.43,20.28036709]
[1722007409954,15.2176,182.53,182.43,13.7031]
[1722007409955,1.37022123,182.52,182.43,13.7031]
[1722007410151,50.4788,182.52,182.42,20.0]
[1722007410356,46.37030166,182.52,182.41,6.57826578]
[1722007410589,46.37030166,182.52,182.39,13.7066]
[1722007410590,22.7,182.5,182.39,13.7066]
[1722007410892,22.7,182.5,182.41,5.4821]
[1722007411172,24.07037748,182.5,182.41,5.4821]
[1722007411383,24.07037748,182.5,182.4,25.4824]
[1722007411672,24.07037748,182.5,182.39,19.1893]
[1722007411873,45.0,182.49,182.39,19.1893]
[1722007412087,1.37053409,182.48,182.39,13.7066]
[1722007412577,46.37055078,182.49,182.39,19.1893]
[1722007412776,46.37051934,182.49,182.39,19.1891]
[1722007413081,46.37047816,182.49,182.42,13.7044]
[1722007413261,46.37047816,182.49,182.35,1.09638253]
[1722007413262,46.37047816,182.49,182.4,5.4822]
[1722007413463,46.37047816,182.49,182.38,19.1896]
[1722007413654,1.37052433,182.48,182.38,13.7069]
[1722007413979,24.07040784,182.5,182.42,5.4818]
[1722007414168,22.7,182.5,182.43,5.4814]
[1722007415053,22.7,182.5,182.4,1.09619155]
[1722007415253,22.7,182.5,182.41,13.7046]
[1722007415467,22.7,182.5,182.42,20.0]
[1722007415664,22.7,182.5,182.44,5.4811]
[1722007415980,22.7,182.5,182.42,20.0]
[1722007415981,22.7,182.5,182.45,5.4809]
[1722007416279,22.7,182.5,182.43,13.7031]
[1722007416456,24.07024385,182.5,182.39,13.7062]
[1722007416661,24.07024385,182.5,182.4,20.0]
[1722007416855,24.07024385,182.5,182.41,5.482]
[1722007417057,24.07024385,182.5,182.4,25.4824]
[1722007417383,15.4169,182.46,182.31,26.0]
[1722007417557,46.37086127,182.45,182.31,26.0]
[1722007417870,6.1809,182.44,182.33,13.7107]
[1722007418069,1.37085249,182.43,182.33,13.7107]
[1722007418256,15.4169,182.41,182.3,13.7136]
[1722007418456,15.4169,182.41,182.3,1.09686693]
[1722007418676,15.4169,182.41,182.36,5.4833]
[1722007418879,15.4169,182.41,182.3,1.09669949]
[1722007419186,15.4169,182.41,182.3,1.09669779]
[1722007419668,15.4169,182.41,182.3,66.09669779]
[1722007419863,15.4169,182.41,182.35,5.4837]
[1722007420070,15.4169,182.41,182.36,5.4834]
[1722007420671,15.4169,182.41,182.32,5.4847]
[1722007420672,1.37087788,182.4,182.32,5.4847]
[1722007420971,1.37087788,182.4,182.3,78.713]
[1722007420972,15.4169,182.41,182.33,25.4844]
[1722007421382,15.4169,182.41,182.35,5.4837]
[1722007421783,1.37099972,182.4,182.33,25.4843]
[1722007422087,15.4169,182.41,182.34,5.4841]
[1722007422288,15.4169,182.41,182.35,5.4839]
[1722007422477,16.78781922,182.41,182.35,5.4839]
[1722007422667,16.78781922,182.41,182.33,20.0]
[1722007422874,1.37092063,182.4,182.33,20.0]
[1722007423091,1.37096944,182.39,182.33,20.0]
[1722007423670,16.78786135,182.41,182.33,25.4845]
[1722007423881,16.78786135,182.41,182.32,19.1962]
[1722007424190,6.0176,182.4,182.32,19.1962]
[1722007424363,6.0176,182.4,182.3,5.4852]
[1722007424364,1.37120017,182.39,182.3,5.4852]
[1722007424569,1.37120017,182.39,182.31,5.485]
[1722007424570,45.0,182.39,182.31,5.485]
[1722007425296,46.37128877,182.39,182.31,5.485]
[1722007425600,45.0,182.39,182.31,5.485]
[1722007426176,7.38888845,182.4,182.32,5.4847]
[1722007426492,6.0176,182.4,182.31,13.7121]
[1722007427269,6.0176,182.4,182.3,5.4852]
[1722007427489,6.0176,182.4,182.33,5.4845]
[1722007427697,6.0176,182.4,182.34,13.7106]
[1722007427873,6.0176,182.4,182.34,19.1945]
[1722007428185,1.37106962,182.39,182.32,5.4846]
[1722007428589,1.3711178,182.38,182.28,13.715]
[1722007428789,45.0,182.39,182.3,5.4854]
[1722007429093,17.28365459,182.38,182.28,19.2009]
[1722007429292,45.0,182.37,182.28,19.2009]
[1722007429468,34.01161327,182.36,182.24,19.2046]
[1722007429671,46.37149924,182.35,182.27,5.4862]
[1722007430075,15.9123,182.34,182.24,13.7176]
[1722007430268,1.37158221,182.33,182.26,5.4864]
[1722007430474,15.9123,182.34,182.26,5.4864]
[1722007430475,1.37159006,182.32,182.26,5.4864]
[1722007431079,15.9123,182.34,182.28,5.486]
[1722007431282,15.9123,182.34,182.26,13.716]
[1722007431684,15.9123,182.34,182.28,5.486]
[1722007431879,15.9123,182.34,182.26,13.716]
[1722007432084,15.9123,182.34,182.27,5.4862]
[1722007433395,15.9123,182.34,182.26,13.716]
[1722007434987,15.9123,182.34,182.28,5.486]
[1722007435782,1.37145211,182.33,182.26,13.716]
[1722007435978,1.37156576,182.32,182.26,13.716]
[1722007436187,15.9123,182.34,182.26,19.2024]
[1722007436587,1.37155933,182.33,182.26,19.2024]
[1722007436897,1.37156472,182.32,182.26,19.2024]
[1722007437290,15.9123,182.34,182.27,5.4862]
[1722007437490,1.37148731,182.33,182.27,5.4862]
[1722007437697,15.9123,182.34,182.27,5.4862]
[1722007437896,15.9123,182.34,182.28,5.486]
[1722007440301,15.9123,182.34,182.29,5.4857]
[1722007440492,15.9123,182.34,182.28,13.7145]
[1722007441197,15.9123,182.34,182.28,19.2005]
[1722007441600,15.9123,182.34,182.28,13.7145]
[1722007441904,17.28371128,182.34,182.26,5.4866]
[1722007442101,17.28371128,182.34,182.27,20.0]
[1722007442280,15.9123,182.34,182.28,5.486]
[1722007443180,6.6402,182.36,182.27,21.09715724]
[1722007443382,15.4142,182.38,182.29,20.0]
[1722007443580,15.4142,182.38,182.33,13.711]
[1722007444198,6.2022,182.41,182.36,13.7089]
[1722007444400,6.2022,182.41,182.38,5.4829]
[1722007444999,15.4142,182.43,182.4,5.4821]
[1722007445416,15.4142,182.43,182.39,13.7067]
[1722007445906,15.4142,182.43,182.4,5.4824]
[1722007446305,15.4142,182.43,182.39,19.1893]
[1722007446504,15.4142,182.43,182.39,13.7067]
[1722007447005,15.4142,182.43,182.39,19.1893]
[1722007447319,15.4142,182.43,182.38,5.483]
[1722007447612,1.3707374,182.42,182.36,19.1924]
[1722007447815,15.4142,182.43,182.37,20.0]
[1722007448313,15.4142,182.43,182.37,25.483]
[1722007448515,15.4142,182.43,182.37,20.0]
[1722007449512,15.4142,182.43,182.36,13.7089]
[1722007449719,15.4142,182.43,182.37,20.0]
[1722007450092,15.4142,182.43,182.37,25.4831]
[1722007450289,15.4142,182.43,182.38,5.4829]
[1722007450487,15.4142,182.43,182.39,5.4826]
[1722007450683,15.4142,182.43,182.4,5.4823]
[1722007451085,15.4142,182.43,182.39,13.7067]
[1722007451286,1.3706527,182.42,182.39,19.1894]
[1722007451494,15.4142,182.43,182.39,19.1891]
[1722007451905,15.4142,182.43,182.39,19.1893]
[1722007452496,1.37069438,182.42,182.37,25.4833]
[1722007452716,15.4142,182.43,182.35,13.7093]
[1722007452916,15.4142,182.43,182.36,25.4833]
[1722007453505,15.4142,182.43,182.36,20.0]
[1722007453895,15.4142,182.43,182.36,25.4833]
[1722007454092,15.4142,182.43,182.37,5.4832]
[1722007454310,15.4142,182.43,182.38,5.483]
[1722007454914,15.4142,182.43,182.38,19.1904]
[1722007455215,16.78497597,182.43,182.38,19.1904]
[1722007455426,15.4142,182.43,182.38,19.1904]
[1722007455607,16.78497573,182.43,182.36,25.4834]
[1722007455803,1.37089936,182.42,182.36,25.4834]
[1722007456008,23.93220513,182.41,182.31,13.7123]
[1722007456325,45.0,182.4,182.31,13.7123]
[1722007456497,1.37120733,182.39,182.31,13.7123]
[1722007456696,1.37118987,182.39,182.31,13.7123]
[1722007456896,1.37118987,182.39,182.33,5.4844]
[1722007457397,46.37117251,182.4,182.33,5.4844]
[1722007458217,22.5613,182.41,182.35,5.4839]
[1722007458399,22.5613,182.41,182.36,5.4836]
[1722007458999,22.5613,182.41,182.35,5.4839]
[1722007459738,22.5613,182.41,182.36,13.7084]
[1722007459912,16.1732,182.41,182.36,13.7084]
[1722007460094,16.3092,182.46,182.39,19.1895]
[1722007460425,1.37066524,182.45,182.39,13.7068]
[1722007460723,16.3092,182.46,182.39,13.7068]
[1722007461024,16.3092,182.46,182.41,5.482]
[1722007462424,16.3092,182.46,182.4,5.4824]
[1722007462720,16.3092,182.46,182.39,13.7068]
[1722007463434,16.3092,182.46,182.35,13.7091]
[1722007463595,46.37078708,182.45,182.36,5.4835]
[1722007463803,46.37078708,182.45,182.35,19.193]
[1722007464120,45.0,182.45,182.35,19.193]
[1722007464318,45.0,182.45,182.35,13.7091]
[1722007464926,45.0,182.45,182.38,5.4828]
[1722007465223,16.3092,182.46,182.38,19.1902]
[1722007465413,17.67986748,182.46,182.38,13.7075]
[1722007465614,16.3092,182.46,182.42,5.4815]
[1722007465926,16.3092,182.46,182.43,5.4815]
[1722007466134,16.3092,182.46,182.41,5.4821]
[1722007466338,16.3092,182.46,182.4,19.1879]
[1722007466540,17.67967777,182.46,182.4,19.1879]
[1722007466725,17.67967777,182.46,182.41,5.4821]
[1722007467441,16.3092,182.46,182.41,5.4821]
[1722007467628,16.3092,182.46,182.43,5.4814]
[1722007467835,16.3092,182.46,182.42,5.4817]
[1722007468837,16.3092,182.46,182.4,19.1878]
[1722007469037,16.3092,182.46,182.4,13.7055]
[1722007469757,16.3092,182.46,182.42,5.4817]
[1722007470340,16.3092,182.46,182.41,5.4821]
[1722007470855,16.3092,182.46,182.4,19.1879]
[1722007471147,16.3092,182.46,182.41,5.4818]
[1722007471327,16.3092,182.46,182.4,13.7055]
[1722007471535,16.3092,182.46,182.43,13.7037]
[1722007471846,16.3092,182.46,182.43,19.1852]
[1722007472221,16.3092,182.46,182.43,13.7037]
[1722007472422,16.3092,182.46,182.41,5.4821]
[1722007472841,16.3092,182.46,182.4,13.7059]
[1722007473518,16.3092,182.46,182.4,19.1882]
[1722007474135,16.3092,182.46,182.41,5.482]
[1722007474938,16.3092,182.46,182.42,5.4818]
[1722007476340,16.3092,182.46,182.41,5.482]
[1722007476529,16.3092,182.46,182.4,19.1883]
[1722007477151,1.37047598,182.45,182.39,5.4827]
[1722007477324,16.3092,182.46,182.37,13.7082]
[1722007477532,16.3092,182.46,182.4,5.4823]
[1722007477934,16.3092,182.46,182.39,5.4827]
[1722007478253,16.3092,182.46,182.38,1.09647026]
[1722007478556,16.3092,182.46,182.38,21.09647026]
[1722007478731,1.37058787,182.45,182.38,20.0]
[1722007478926,17.67978975,182.46,182.38,5.4829]
[1722007479132,16.3092,182.46,182.38,5.4829]
[1722007479436,1.3706755,182.45,182.38,5.4829]
[1722007480946,1.3706755,182.45,182.37,19.1915]
[1722007481138,46.3706755,182.45,182.37,19.1915]
[1722007481850,46.3706755,182.45,182.34,13.7103]
[1722007482156,46.3706755,182.45,182.34,5.4841]
[1722007482341,46.3706755,182.45,182.35,5.4838]
[1722007482539,46.3706755,182.45,182.37,5.4832]
[1722007482835,46.3706755,182.45,182.38,5.483]
[1722007483041,46.3706755,182.45,182.36,5.4834]
[1722007483331,1.37084293,182.44,182.35,19.1933]
[1722007483543,1.37084293,182.44,182.35,13.7094]
[1722007483746,45.0,182.45,182.35,19.1933]
[1722007483948,1.3709574,182.44,182.35,13.7094]
[1722007484152,16.6576,182.42,182.34,5.4842]
[1722007484463,1.37100224,182.41,182.34,5.4842]
[1722007485367,18.02860184,182.42,182.34,5.4842]
[1722007485858,45.0,182.41,182.34,5.4842]
[1722007487329,45.0,182.41,182.3,27.426]
[1722007487330,1.37108889,182.4,182.31,5.4848]
[1722007487545,46.37129829,182.41,182.33,5.4845]
[1722007487752,46.37129829,182.41,182.34,5.4841]
[1722007487940,46.37129829,182.41,182.33,5.4844]
[1722007488134,46.37129829,182.41,182.32,5.4848]
[1722007488334,46.37129829,182.41,182.33,5.4845]
[1722007488529,45.0,182.41,182.31,13.7123]
[1722007488730,45.0,182.41,182.33,5.4843]
[1722007488951,1.37113343,182.4,182.33,5.4843]
[1722007489549,45.0,182.41,182.34,13.7102]
[1722007489738,45.0,182.41,182.35,5.4838]
[1722007490053,16.6576,182.42,182.36,5.4835]
[1722007490246,16.6576,182.42,182.37,5.4832]
[1722007490763,16.6576,182.42,182.38,5.483]
[1722007491143,16.6576,182.42,182.39,5.4827]
[1722007491747,16.6576,182.42,182.37,5.483]
[1722007492041,16.6576,182.42,182.36,5.4835]
[1722007492247,18.02846285,182.42,182.35,13.7097]
[1722007492433,16.6576,182.42,182.35,13.7097]
[1722007493567,18.02854683,182.42,182.35,13.7097]
[1722007493860,45.0,182.41,182.35,13.7097]
[1722007494054,18.02854683,182.42,182.35,13.7097]
[1722007494255,18.02854683,182.42,182.35,19.1936]
[1722007495649,18.02854683,182.42,182.35,13.7097]
[1722007495963,18.02854683,182.42,182.33,5.4842]
[1722007496141,18.02854683,182.42,182.35,5.4839]
[1722007496541,18.02854683,182.42,182.36,5.4836]
[1722007496874,16.6576,182.42,182.38,5.483]
[1722007497240,16.6576,182.42,182.39,5.4826]
[1722007497877,16.6576,182.42,182.38,5.483]
[1722007498565,16.6576,182.42,182.37,5.4833]
[1722007498943,16.6576,182.42,182.36,19.1921]
[1722007499550,18.02844431,182.42,182.36,19.1921]
[1722007499957,16.6576,182.42,182.36,19.1921]
[1722007500242,16.6576,182.42,182.36,13.7085]
[1722007501262,16.6576,182.42,182.37,5.4831]
[1722007501467,18.0283845,182.42,182.36,13.7085]
[1722007502468,18.0283845,182.42,182.36,19.1921]
[1722007503162,16.6576,182.42,182.37,5.4833]
[1722007503363,16.6576,182.42,182.38,5.4829]
[1722007503663,16.6576,182.42,182.36,13.7085]